Workbook

Sheet 031
B2: AUTORIDAD PARA EL MANEJO SUSTENTABLE DE LA CUENCA Y DEL LAGO DE AMATITLÁN
B3: NOMINA CORRESPONDIENTE AL MES DE AGOSTO 2018
B4: NÚMERO 23-2018
B5: RENGLÓN 031 "JORNALES"
D7: SOLICITUD DE PAGO
B9: SUBPRODUCTO: DIRECCIÓN Y COORDINACIÓN 001-001-0001
B10: 11130016-219-00-33-00-000-001-000-031-0115-11-0000-0000
B13: No. | C13: PUESTO | D13: Titulo Jornal Diario | E13: Empleado | F13: Contrato | G13: Fecha de Ingreso | H13: Jornal | I13: Días | J13: Renglón 031 | K13: Renglón 033 | L13: Renglón 033 | M13: Total Devengado Mensual | N13: Deducciones | Q13: Total Deducciones | R13: Liquido | S13: Número de Cuenta
N14: 201 | O14: 211 | P14: 120
J15: Jornales | K15: Bono 66-2000 | L15: complemento específico por nivelación | N15: IGSS | O15: Retenciones Judiciales | P15: Decreto 81-70
B16: 1 | C16: Encargada de Limpieza | D16: Conserje | E16: Gladis Mirtala Ramírez Sánchez | F16: 01-2018-031-AMSA | G16: 2008-01-02 | H16: 71.4 | I16: 31 | J16: =H16*I16 -> 2213.4 | K16: 250 | L16: =18.76*I16 -> 581.56 | M16: =SUM(J16:L16) -> 3044.96 | N16: =ROUND((J16+L16)*4.83%,2) -> 135 | O16: 0 | P16: 0 | Q16: =SUM(N16:P16) -> 135 | R16: =+M16-Q16 -> 2909.96 | S16: 3216012953
B17: 2 | D17: Conserje | E17: Vidal Cruz Martínez | F17: 02-2018-031-AMSA | G17: 2002-02-02 | H17: 71.4 | I17: 31 | J17: 2213.4 | K17: 250 | L17: =18.76*I17 -> 581.56 | M17: 3044.96 | N17: 135 | O17: 0 | P17: 0 | Q17: 135 | R17: 2909.96 | S17: 3216001970
B18: 3 | C18: Jardinero | D18: Conserje | E18: Victorina de Jesús Peralta Peralta | F18: 03-2018-031-AMSA | G18: 01/10/2014 | H18: 71.4 | I18: 31 | J18: 2213.4 | K18: 250 | L18: 581.56 | M18: 3044.96 | N18: 135 | O18: 0 | P18: 0 | Q18: 135 | R18: 2909.96 | S18: 3393002669
B19: 4 | D19: Conserje | E19: Sara Adelaida Quevedo Alcántara | F19: 04-2018-031-AMSA | G19: 03/12/2012 | H19: 71.4 | I19: 20 | J19: 1428 | K19: 250 | L19: 375.2 | M19: 2053.2 | N19: 87.09 | O19: 0 | P19: 0 | Q19: 87.09 | R19: 1966.11 | S19: 4322082859
B20: 5 | C20: Encargada de Limpieza | D20: Conserje | E20: Elida Etelvina Obando Hernandez | F20: 05-2018-031-AMSA | G20: 25/10/2013 | H20: 71.4 | I20: 31 | J20: 2213.4 | K20: 250 | L20: 581.56 | M20: 3044.96 | N20: 135 | O20: 0 | P20: 0 | Q20: 135 | R20: 2909.96 | S20: 4654012114
B21: 6 | C21: Encargada de Limpieza | D21: Conserje | E21: Yomara Ninett Escobar Calderón | F21: 06-2018-031-AMSA | G21: 03/10/2014 | H21: 71.4 | I21: 31 | J21: 2213.4 | K21: 250 | L21: 581.56 | M21: 3044.96 | N21: 135 | O21: 0 | P21: 0 | Q21: 135 | R21: 2909.96 | S21: 3164072096
B22: 7 | D22: Conserje | E22: Doménica del Cid Barillas | F22: 139-2018-031-AMSA | G22: 01/08/2018 | H22: 71.4 | I22: 31 | J22: =H22*I22 -> 2213.4 | K22: 250 | L22: =18.76*I22 -> 581.56 | M22: =SUM(J22:L22) -> 3044.96 | N22: =ROUND((J22+L22)*4.83%,2) -> 135 | O22: 0 | P22: 0 | Q22: =SUM(N22:P22) -> 135 | R22: =+M22-Q22 -> 2909.96 | S22: 3532023727
B23: 8 | D23: Conserje | E23: Josue Alexander Barrientos | F23: 138-2018-031-AMSA | G23: 01/08/2019 | H23: 71.4 | I23: 31 | J23: 2213.4 | K23: 250 | L23: 581.56 | M23: 3044.96 | N23: 135 | O23: 0 | P23: 0 | Q23: 135 | R23: 2909.96 | S23: 3185880577
B24: 9 | D24: Conserje | E24: Jacqueline Victoria Noj Carrera | F24: 07-2018-031-AMSA | G24: 01/01/2018 | H24: 71.4 | I24: 31 | J24: =H24*I24 -> 2213.4 | K24: 250 | L24: 581.56 | M24: =SUM(J24:L24) -> 3044.96 | N24: =ROUND((J24+L24)*4.83%,2) -> 135 | O24: 0 | P24: 0 | Q24: =SUM(N24:P24) -> 135 | R24: =+M24-Q24 -> 2909.96 | S24: 3759034879
B25: 10 | C25: Peon Vigilante | D25: Peón Vigilante V | E25: Estuardo Randolfo Gutierrez Cruz | F25: 08-2018-031-AMSA | G25: 2017-03-01 | H25: 75.64 | I25: 31 | J25: =H25*I25 -> 2344.84 | K25: 250 | L25: =14.52*I25 -> 450.12 | M25: =SUM(J25:L25) -> 3044.96 | N25: =ROUND((J25+L25)*4.83%,2) -> 135 | O25: 0 | P25: 0 | Q25: =SUM(N25:P25) -> 135 | R25: =+M25-Q25 -> 2909.96 | S25: 3607017078
B26: 11 | C26: Peon Vigilante | D26: Peón Vigilante V | E26: Biayner Soto Arana | F26: 09-2018-031-AMSA | G26: 2017-02-20 | H26: 75.64 | I26: 31 | J26: 2344.84 | K26: 250 | L26: =14.52*I26 -> 450.12 | M26: 3044.96 | N26: 135 | O26: 0 | P26: 0 | Q26: 135 | R26: 2909.96 | S26: 3287038944
B27: 12 | C27: Peon Vigilante | D27: Peón Vigilante V | E27: Hamilton Wilfredo Hernández Hernández | F27: 11-2018-031-AMSA | G27: 2017-02-20 | H27: 75.64 | I27: 31 | J27: 2344.84 | K27: 250 | L27: 450.12 | M27: 3044.96 | N27: 135 | O27: 0 | P27: 0 | Q27: 135 | R27: 2909.96 | S27: 3287039080
B28: 13 | C28: Peon Vigilante | D28: Peón Vigilante V | E28: Nazario Hernández Osorio | F28: 13-2018-031-AMSA | G28: 2017-02-20 | H28: 75.64 | I28: 31 | J28: 2344.84 | K28: 250 | L28: 450.12 | M28: 3044.96 | N28: 135 | O28: 0 | P28: 0 | Q28: 135 | R28: 2909.96 | S28: 3364085352
B29: 14 | C29: Peon Vigilante | D29: Peón Vigilante V | E29: Candido Samayoa y Samayoa | F29: 14-2018-031-AMSA | G29: 2017-02-20 | H29: 75.64 | I29: 31 | J29: 2344.84 | K29: 250 | L29: 450.12 | M29: 3044.96 | N29: 135 | O29: 0 | P29: 0 | Q29: 135 | R29: 2909.96 | S29: 3532020817
B30: 15 | C30: Peon Vigilante | D30: Peón Vigilante V | E30: Axel Augusto Lopez De León | F30: 15-2018-031-AMSA | G30: 2017-02-20 | H30: 75.64 | I30: 31 | J30: =H30*I30 -> 2344.84 | K30: 250 | L30: 450.12 | M30: 3044.96 | N30: 135 | O30: 0 | P30: 0 | Q30: 135 | R30: 2909.96 | S30: 3424051646
B31: 16 | C31: Peon Vigilante | D31: Peón Vigilante V | E31: Armando Roca Valdes | F31: 113-2018-031-AMSA | G31: 2018-02-01 | H31: 75.64 | I31: 31 | J31: 2344.84 | K31: 250 | L31: 450.12 | M31: 3044.96 | N31: 135 | O31: 0 | P31: 0 | Q31: 135 | R31: 2909.96 | S31: 03101300033657
B32: 17 | C32: Peon Vigilante | D32: Peón Vigilante V | E32: Jose Urias Muñoz | F32: 18-2018-031-AMSA | G32: 2017-02-20 | H32: 75.64 | I32: 31 | J32: =H32*I32 -> 2344.84 | K32: 250 | L32: 450.12 | M32: 3044.96 | N32: 135 | O32: 0 | P32: 0 | Q32: 135 | R32: 2909.96 | S32: 3137127054
B33: 18 | C33: Peon Vigilante | D33: Peón Vigilante V | E33: Henry Alejandro Ventura Hernandez | F33: 19-2018-031-AMSA | G33: 2017-02-20 | H33: 75.64 | I33: 31 | J33: 2344.84 | K33: 250 | L33: 450.12 | M33: 3044.96 | N33: 135 | O33: 0 | P33: 0 | Q33: 135 | R33: 2909.96 | S33: 3287039109
B34: 19 | C34: Peon Vigilante | D34: Peón Vigilante V | E34: Jorge Adán Arizandieta García | F34: 20-2018-031-AMSA | G34: 2017-02-20 | H34: 75.64 | I34: 31 | J34: 2344.84 | K34: 250 | L34: 450.12 | M34: 3044.96 | N34: 135 | O34: 0 | P34: 0 | Q34: 135 | R34: 2909.96 | S34: 3287038912
B35: 20 | C35: Peon Vigilante | D35: Peón Vigilante V | E35: Ricardo Arizandieta García | F35: 21-2018-031-AMSA | G35: 2017-02-20 | H35: 75.64 | I35: 31 | J35: 2344.84 | K35: 250 | L35: 450.12 | M35: 3044.96 | N35: 135 | O35: 0 | P35: 0 | Q35: 135 | R35: 2909.96 | S35: 3287038926
B36: 21 | D36: Peón Vigilante V | E36: Miguel Angel de León | F36: 136-2018-031-AMSA | G36: 2018-05-03 | H36: 75.64 | I36: 31 | J36: =H36*I36 -> 2344.84 | K36: 250 | L36: =14.52*I36 -> 450.12 | M36: =SUM(J36:L36) -> 3044.96 | N36: =ROUND((J36+L36)*4.83%,2) -> 135 | O36: 0 | P36: 0 | Q36: =SUM(N36:P36) -> 135 | R36: =+M36-Q36 -> 2909.96 | S36: 4094061109
B37: 22 | D37: Peón Vigilante V | E37: Roberto Romero Peralta | F37: 22-2018-031-AMSA | G37: 2015-02-17 | H37: 75.64 | I37: 31 | J37: =H37*I37 -> 2344.84 | K37: 250 | L37: 450.12 | M37: 3044.96 | N37: =ROUND((J37+L37)*4.83%,2) -> 135 | O37: 0 | P37: 0 | Q37: =SUM(N37:P37) -> 135 | R37: =+M37-Q37 -> 2909.96 | S37: 3164072927
B38: 23 | C38: Peon Vigilante | D38: Peón | E38: Rutilia Gomez Lopez | F38: 23-2018-031-AMSA | G38: 2017-05-16 | H38: 71.4 | I38: 31 | J38: 2213.4 | K38: 250 | L38: =18.76*I38 -> 581.56 | M38: 3044.96 | N38: 135 | O38: 0 | P38: 0 | Q38: 135 | R38: 2909.96 | S38: 3153059040
F39: Totales | J39: =SUM(J16:J38) -> 51831.52 | K39: 5750 | L39: 11460.8 | M39: 69042.32 | N39: 3057.09 | O39: 0 | P39: 0 | Q39: 3057.09 | R39: 65985.23 | V39: =2909.96*21 -> 61109.16
B43: SUBPRODUCTO: CONTROL Y MANEJO DE LOS DESECHOS SÓLIDOS EN LA CUENCA DEL LAGO DE AMATITLÁN 001-002-0005
B44: 11130016-219-00-33-00-000-002-000-031-0115-11-0000-0000
B47: No. | C47: PUESTO | D47: Titulo Jornal Diario | E47: Empleado | F47: Contrato | G47: Fecha de Ingreso | H47: Jornal | I47: Días | J47: Renglón 031 | K47: Renglón 033 | L47: Renglón 033 | M47: Total Devengado Mensual | N47: Deducciones | Q47: Total Deducciones | R47: Liquido | S47: Número de Cuenta | U47: 0010 / 692 - UC RELLENO SANITARIO (004)
N48: 201 | O48: 211 | P48: 120
J49: Jornales | K49: Bono 66-2000 | L49: complemento específico por nivelación | N49: IGSS | O49: Retenciones Judiciales | P49: Decreto 81-70
B50: 1 | C50: Peón de Campo | D50: Peón | E50: Maynor de Jesús De León Dionicio | F50: 24-2018-031-AMSA | G50: 05/01/2015 | H50: 71.4 | I50: 31 | J50: =H50*I50 -> 2213.4 | K50: 250 | L50: =18.76*I50 -> 581.56 | M50: =SUM(J50:L50) -> 3044.96 | N50: =ROUND((J50+L50)*4.83%,2) -> 135 | O50: 0 | P50: 0 | Q50: =SUM(N50:P50) -> 135 | R50: =+M50-Q50 -> 2909.96 | S50: 3216010363
B51: 2 | D51: Peón | E51: Cecilio Antonio Vásquez Soto | F51: 25-2018-031-AMSA | G51: 2012-10-02 | H51: 71.4 | I51: 31 | J51: 2213.4 | K51: 250 | L51: 581.56 | M51: 3044.96 | N51: 135 | O51: 0 | P51: 0 | Q51: 135 | R51: 2909.96 | S51: 3532007563
B52: 3 | D52: Peón | E52: Rafael de Jesús Perea Peralta | F52: 26-2018-031-AMSA | G52: 01/01/2016 | H52: 71.4 | I52: 31 | J52: =H52*I52 -> 2213.4 | K52: 250 | L52: 581.56 | M52: =SUM(J52:L52) -> 3044.96 | N52: =ROUND((J52+L52)*4.83%,2) -> 135 | O52: 0 | P52: 0 | Q52: =SUM(N52:P52) -> 135 | R52: 2909.96 | S52: 3216008208
B53: 4 | D53: Peón | E53: José Filiberto Domingo Domingo | F53: 27-2018-031-AMSA | G53: 2006-01-02 | H53: 71.4 | I53: 31 | J53: =H53*I53 -> 2213.4 | K53: 250 | L53: 581.56 | M53: =SUM(J53:L53) -> 3044.96 | N53: =ROUND((J53+L53)*4.83%,2) -> 135 | O53: 0 | P53: 0 | Q53: =SUM(N53:P53) -> 135 | R53: 2909.96 | S53: 4216005864
B54: 5 | D54: Peón | E54: Domingo Sánchez Alonzo | F54: 55-2018-031-AMSA | G54: 2018-01-01 | H54: 71.4 | I54: 31 | J54: =H54*I54 -> 2213.4 | K54: 250 | L54: 581.56 | M54: =SUM(J54:L54) -> 3044.96 | N54: =ROUND((J54+L54)*4.83%,2) -> 135 | O54: 0 | P54: 0 | Q54: =SUM(N54:P54) -> 135 | R54: 2909.96 | S54: 3216034565
B55: 6 | D55: Peón | E55: Alber Asael Godínez Hernández | F55: 56-2018-031-AMSA | G55: 2018-01-01 | H55: 71.4 | I55: 31 | J55: 2213.4 | K55: 250 | L55: 581.56 | M55: 3044.96 | N55: 135 | O55: 0 | P55: 0 | Q55: 135 | R55: 2909.96 | S55: 3393002889
F56: Totales | J56: =SUM(J50:J55) -> 13280.4 | K56: 1500 | L56: 3489.36 | M56: 18269.76 | N56: 810 | O56: 0 | P56: 0 | Q56: 810 | R56: 17459.76
A62: SUBPRODUCTO: TRATAMIENTO DE LAS AGUAS RESIDUALES A TRÁVES DE LAS PLANTAS DE TRATAMIENTO A CARGO DE LA INSTITUCIÓN 001-002-0001
B63: 11130016-219-00-33-00-000-002-000-031-0115-11-0000-0000
B65: No. | C65: PUESTO | D65: Titulo Jornal Diario | E65: Empleado | F65: Contrato | G65: Fecha de Ingreso | H65: Jornal | I65: Días | J65: Renglón 031 | K65: Renglón 033 | L65: Renglón 033 | M65: Total Devengado Mensual | N65: Deducciones | Q65: Total Deducciones | R65: Liquido | S65: Número de Cuenta | U65: 0009 / 691 - UC PLANTAS DE TRATAMIENTO (003)
N66: 201 | O66: 211 | P66: 120
J67: Jornales | K67: Bono 66-2000 | L67: complemento específico por nivelación | N67: IGSS | O67: Retenciones Judiciales | P67: Decreto 81-70
B68: 1 | C68: Peon Vigilante | D68: Peón Vigilante V | E68: Werlington Jeffrey Robinzon Alvarado Hernandez | F68: 10-2018-031-AMSA | G68: 2017-02-20 | H68: 75.64 | I68: 31 | J68: =H68*I68 -> 2344.84 | K68: 250 | L68: =14.52*I68 -> 450.12 | M68: =SUM(J68:L68) -> 3044.96 | N68: =ROUND((J68+L68)*4.83%,2) -> 135 | O68: 0 | P68: 0 | Q68: =SUM(N68:P68) -> 135 | R68: =+M68-Q68 -> 2909.96 | S68: 3287038994
B69: 2 | C69: Operadores PTAR | D69: Peón | E69: Agustín López López | F69: 28-2018-031-AMSA | G69: 2007-01-02 | H69: 71.4 | I69: 31 | J69: =H69*I69 -> 2213.4 | K69: 250 | L69: =18.76*I69 -> 581.56 | M69: =SUM(J69:L69) -> 3044.96 | N69: =ROUND((J69+L69)*4.83%,2) -> 135 | O69: 0 | P69: 0 | Q69: =SUM(N69:P69) -> 135 | R69: =+M69-Q69 -> 2909.96 | S69: 3216004367
B70: 3 | C70: Operadores PTAR | D70: Peón | E70: Nelson Orlando Quiñonez Yohol | F70: 29-2018-031-AMSA | G70: 2005-02-01 | H70: 71.4 | I70: 31 | J70: 2213.4 | K70: 250 | L70: 581.56 | M70: 3044.96 | N70: 135 | O70: 0 | P70: 0 | Q70: 135 | R70: 2909.96 | S70: 3216001475
B71: 4 | C71: Operadores PTAR | D71: Peón | E71: Herculano Colmenar Estrada | F71: 30-2018-031-AMSA | G71: 2003-03-01 | H71: 71.4 | I71: 31 | J71: 2213.4 | K71: 250 | L71: 581.56 | M71: 3044.96 | N71: 135 | O71: 0 | P71: 0 | Q71: 135 | R71: 2909.96 | S71: 3216001439
B72: 5 | C72: Operadores PTAR | D72: Peón | E72: Guillermo Apolonio Chuc Mejía | F72: 31-2018-031-AMSA | G72: 2003-05-01 | H72: 71.4 | I72: 31 | J72: 2213.4 | K72: 250 | L72: 581.56 | M72: 3044.96 | N72: 135 | O72: 0 | P72: 0 | Q72: 135 | R72: 2909.96 | S72: 3216001493
B73: 6 | C73: Operadores PTAR | D73: Peón | E73: Marcelino Gómez Dávila | F73: 32-2018-031-AMSA | G73: 2003-03-01 | H73: 71.4 | I73: 31 | J73: 2213.4 | K73: 250 | L73: 581.56 | M73: 3044.96 | N73: 135 | O73: 0 | P73: 0 | Q73: 135 | R73: 2909.96 | S73: 4216002459
B74: 7 | C74: Peón de Campo | D74: Peón | E74: Héctor William Martínez Cabrera | F74: 33-2018-031-AMSA | G74: 2007-01-02 | H74: 71.4 | I74: 31 | J74: 2213.4 | K74: 250 | L74: 581.56 | M74: 3044.96 | N74: 135 | O74: 0 | P74: 0 | Q74: 135 | R74: 2909.96 | S74: 3216004486
B75: 8 | D75: Peón | E75: Abel Barillas Grajeda | F75: 34-2018-031-AMSA | G75: 2003-04-01 | H75: 71.4 | I75: 31 | J75: 2213.4 | K75: 250 | L75: 581.56 | M75: 3044.96 | N75: 135 | O75: 0 | P75: 0 | Q75: 135 | R75: 2909.96 | S75: 3216001443
A76: 58 | B76: 9 | D76: Peón | E76: Napoleon Canahui Pop | F76: 35-2018-031-AMSA | G76: 2017-06-01 | H76: 71.4 | I76: 31 | J76: =H76*I76 -> 2213.4 | K76: 250 | L76: 581.56 | M76: =SUM(J76:L76) -> 3044.96 | N76: =ROUND((J76+L76)*4.83%,2) -> 135 | O76: 0 | P76: 0 | Q76: =SUM(N76:P76) -> 135 | R76: 2909.96 | S76: 3287036524
B77: 10 | D77: Peón | E77: Calixto de Jesús Rodríguez Quintero | F77: 36-2018-031-AMSA | G77: 2016-01-01 | H77: 71.4 | I77: 31 | J77: 2213.4 | K77: 250 | L77: 581.56 | M77: 3044.96 | N77: 135 | O77: 0 | P77: 0 | Q77: 135 | R77: =+M77-Q77 -> 2909.96 | S77: 3153050750
B78: 11 | D78: Peón | E78: Wilber Celestino Gonzalez Guerra | F78: 37-2018-031-AMSA | G78: 2018-01-01 | H78: 71.4 | I78: 31 | J78: =H78*I78 -> 2213.4 | K78: 250 | L78: 581.56 | M78: =SUM(J78:L78) -> 3044.96 | N78: =ROUND((J78+L78)*4.83%,2) -> 135 | O78: 0 | P78: 0 | Q78: =SUM(N78:P78) -> 135 | R78: =+M78-Q78 -> 2909.96 | S78: 3287036510
B79: 12 | D79: Peón | E79: Alexis Rodolfo Gonzáles Avila | F79: 38-2018-031-AMSA | G79: 2018-01-01 | H79: 71.4 | I79: 31 | J79: 2213.4 | K79: 250 | L79: 581.56 | M79: 3044.96 | N79: 135 | O79: 0 | P79: 0 | Q79: 135 | R79: 2909.96 | S79: 3493030662
B80: 13 | D80: Peón | E80: Domingo Antonio Martínez Vásquez | F80: 39-2018-031-AMSA | G80: 2018-01-01 | H80: 71.4 | I80: 31 | J80: 2213.4 | K80: 250 | L80: 581.56 | M80: 3044.96 | N80: 135 | O80: 0 | P80: 0 | Q80: 135 | R80: 2909.96 | S80: 3229011703
B81: 14 | D81: Peón | E81: Juan Luis Hernández Hernández | F81: 40-2018-031-AMSA | G81: 2018-01-01 | H81: 71.4 | I81: 31 | J81: 2213.4 | K81: 250 | L81: 581.56 | M81: 3044.96 | N81: 135 | O81: 0 | P81: 0 | Q81: 135 | R81: 2909.96 | S81: 3229010483 | T81: 3229010483
B82: 15 | D82: Peón | E82: Carlos Augusto Secaida Hernández | F82: 41-2018-031-AMSA | G82: 2018-01-01 | H82: 71.4 | I82: 31 | J82: 2213.4 | K82: 250 | L82: 581.56 | M82: 3044.96 | N82: 135 | O82: 0 | P82: 0 | Q82: 135 | R82: 2909.96 | S82: 3287027181
B83: 16 | D83: Peón | E83: Juan José Rodas Rivas | F83: 42-2018-031-AMSA | G83: 2018-01-01 | H83: 71.4 | I83: 31 | J83: 2213.4 | K83: 250 | L83: 581.56 | M83: 3044.96 | N83: 135 | O83: 1100 | P83: 0 | Q83: 1235 | R83: 1809.96 | S83: 3216008414
B84: 17 | D84: Peón | E84: Alfredo Leonardo Bámaca | F84: 43-2018-031-AMSA | G84: 2018-01-01 | H84: 71.4 | I84: 31 | J84: 2213.4 | K84: 250 | L84: 581.56 | M84: 3044.96 | N84: 135 | O84: 0 | P84: 0 | Q84: 135 | R84: 2909.96 | S84: 3661014699
B85: 18 | D85: Peón | E85: Filiberto Antonio Pinto | F85: 44-2018-031-AMSA | G85: 2018-01-01 | H85: 71.4 | I85: 31 | J85: 2213.4 | K85: 250 | L85: 581.56 | M85: 3044.96 | N85: 135 | O85: 0 | P85: 0 | Q85: 135 | R85: 2909.96 | S85: 3287036657
B86: 19 | D86: Peón | E86: Billy Joel Fernández Guevara | F86: 46-2018-031-AMSA | G86: 2018-01-01 | H86: 71.4 | I86: 31 | J86: 2213.4 | K86: 250 | L86: 581.56 | M86: 3044.96 | N86: 135 | O86: 0 | P86: 0 | Q86: 135 | R86: 2909.96 | S86: 3137114532
B87: 20 | D87: Peón | E87: Héctor Vásquez Gómez | F87: 47-2018-031-AMSA | G87: 2018-01-01 | H87: 71.4 | I87: 31 | J87: 2213.4 | K87: 250 | L87: 581.56 | M87: 3044.96 | N87: 135 | O87: 0 | P87: 0 | Q87: 135 | R87: 2909.96 | S87: 3493048208
B88: 21 | D88: Peón | E88: Fidencio Monge Pérez | F88: 48-2018-031-AMSA | G88: 2018-01-01 | H88: 71.4 | I88: 31 | J88: 2213.4 | K88: 250 | L88: 581.56 | M88: 3044.96 | N88: 135 | O88: 0 | P88: 0 | Q88: 135 | R88: 2909.96 | S88: 3216036260
B89: 22 | D89: Peón | E89: Basilio Ordoñez Lares | F89: 49-2018-031-AMSA | G89: 2018-01-01 | H89: 71.4 | I89: 31 | J89: 2213.4 | K89: 250 | L89: 581.56 | M89: 3044.96 | N89: 135 | O89: 0 | P89: 0 | Q89: 135 | R89: 2909.96 | S89: 3759029670
B90: 23 | D90: Peón | E90: Québrin Humberto Romero Chinchilla | F90: 50-2018-031-AMSA | G90: 2018-01-01 | H90: 71.4 | I90: 31 | J90: 2213.4 | K90: 250 | L90: 581.56 | M90: 3044.96 | N90: 135 | O90: 0 | P90: 0 | Q90: 135 | R90: 2909.96 | S90: 3628011282
B91: 24 | D91: Peón | E91: Inocente Byron Pineda Dionicio | F91: 52-2018-031-AMSA | G91: 2018-01-01 | H91: 71.4 | I91: 31 | J91: 2213.4 | K91: 250 | L91: 581.56 | M91: 3044.96 | N91: 135 | O91: 0 | P91: 0 | Q91: 135 | R91: 2909.96 | S91: 3216003437
B92: 25 | D92: Peón | E92: Flavio Alí Alonso Gil | F92: 53-2018-031-AMSA | G92: 2002-01-02 | H92: 71.4 | I92: 31 | J92: 2213.4 | K92: 250 | L92: 581.56 | M92: 3044.96 | N92: 135 | O92: 670 | P92: 0 | Q92: 805 | R92: 2239.96 | S92: 3216001631
B93: 26 | D93: Peón | E93: Carlos Fernando Tello Valdez | F93: 54-2018-031-AMSA | G93: 2002-01-02 | H93: 71.4 | I93: 31 | J93: 2213.4 | K93: 250 | L93: 581.56 | M93: 3044.96 | N93: 135 | O93: 0 | P93: 0 | Q93: 135 | R93: 2909.96 | S93: 4216002514
F94: Totales | J94: =SUM(J68:J93) -> 57679.84 | K94: 6500 | L94: 14989.12 | M94: 79168.96 | N94: 3510 | O94: 1770 | P94: 0 | Q94: 5280 | R94: 73888.96
B111: SUBPRODUCTO: VOLUMEN DE DESECHOS SÓLIDOS FLOTANTES Y PLANTAS ACUÁTICAS EXTRAÍDOS DEL LAGO DE AMATITLÁN 001-002-0002
B112: 11130016-219-00-33-00-000-002-000-031-0115-11-0000-0000
B114: No. | C114: PUESTO | D114: Titulo Jornal Diario | E114: Empleado | F114: Contrato | G114: Fecha de Ingreso | H114: Jornal | I114: Días | J114: Renglón 031 | K114: Renglón 033 | L114: Renglón 033 | M114: Total Devengado Mensual | N114: Deducciones | Q114: Total Deducciones | R114: Liquido | S114: Número de Cuenta | U114: 0006 / 628 - UC LIMPIEZA DEL LAGO (002)
N115: 201 | O115: 211 | P115: 120
J116: Jornales | K116: Bono 66-2000 | L116: complemento específico por nivelación | N116: IGSS | O116: Retenciones Judiciales | P116: Decreto 81-70
B117: 1 | D117: Peón | E117: Roberto Leonel González Miguel | F117: 51-2018-031-AMSA | G117: 2018-01-01 | H117: 71.4 | I117: 31 | J117: =H117*I117 -> 2213.4 | K117: 250 | L117: =18.76*I117 -> 581.56 | M117: =SUM(J117:L117) -> 3044.96 | N117: =ROUND((J117+L117)*4.83%,2) -> 135 | O117: 0 | P117: 0 | Q117: =SUM(N117:P117) -> 135 | R117: =+M117-Q117 -> 2909.96 | S117: 3216033718
B118: 2 | C118: Operario de Maquinaria | D118: Peón | E118: Gerver Oswaldo Suruy Estupe | F118: 57-2018-031-AMSA | G118: 2007-01-02 | H118: 71.4 | I118: 31 | J118: =H118*I118 -> 2213.4 | K118: 250 | L118: 581.56 | M118: =SUM(J118:L118) -> 3044.96 | N118: =ROUND((J118+L118)*4.83%,2) -> 135 | O118: 0 | P118: 0 | Q118: =SUM(N118:P118) -> 135 | R118: =+M118-Q118 -> 2909.96 | S118: 3216003318
B119: 3 | C119: Lanchero | D119: Peón | E119: Andrés Payes Rodríguez | F119: 58-2018-031-AMSA | G119: 2002-01-02 | H119: 71.4 | I119: 31 | J119: =H119*I119 -> 2213.4 | K119: 250 | L119: 581.56 | M119: =SUM(J119:L119) -> 3044.96 | N119: =ROUND((J119+L119)*4.83%,2) -> 135 | O119: 800 | P119: 0 | Q119: =SUM(N119:P119) -> 935 | R119: =+M119-Q119 -> 2109.96 | S119: 3216001700
B120: 4 | C120: Peón de Campo | D120: Peón | E120: Ignacio Seijas Sequen | F120: 59-2018-031-AMSA | G120: 2006-01-02 | H120: 71.4 | I120: 31 | J120: 2213.4 | K120: 250 | L120: 581.56 | M120: 3044.96 | N120: 135 | O120: 0 | P120: 0 | Q120: 135 | R120: 2909.96 | S120: 3234009071
B121: 5 | C121: Peón de Campo | D121: Peón | E121: Mario Arturo Sigüenza | F121: 60-2018-031-AMSA | G121: 2003-08-01 | H121: 71.4 | I121: 31 | J121: 2213.4 | K121: 250 | L121: 581.56 | M121: 3044.96 | N121: 135 | O121: 0 | P121: 0 | Q121: 135 | R121: 2909.96 | S121: 3216001801
B122: 6 | C122: Encargado de Oxigenadores | D122: Peón | E122: Jesús Antonio Montúfar Mazariegos | F122: 61-2018-031-AMSA | G122: 2007-05-02 | H122: 71.4 | I122: 31 | J122: 2213.4 | K122: 250 | L122: 581.56 | M122: 3044.96 | N122: 135 | O122: 0 | P122: 0 | Q122: 135 | R122: 2909.96 | S122: 3164031580
B123: 7 | C123: Peón de Campo | D123: Peón | E123: Carlos Humberto Gatica González | F123: 62-2018-031-AMSA | G123: 2007-05-16 | H123: 71.4 | I123: 31 | J123: 2213.4 | K123: 250 | L123: 581.56 | M123: 3044.96 | N123: 135 | O123: 0 | P123: 0 | Q123: 135 | R123: 2909.96 | S123: 4216002528
B124: 8 | C124: Peón de Campo | D124: Peón | E124: Nery Armando Castañeda Avilés | F124: 63-2018-031-AMSA | G124: 2008-06-09 | H124: 71.4 | I124: 31 | J124: 2213.4 | K124: 250 | L124: 581.56 | M124: 3044.96 | N124: 135 | O124: 0 | P124: 0 | Q124: 135 | R124: 2909.96 | S124: 3164034252
B125: 9 | C125: Peón de Campo | D125: Peón | E125: Yury Geovani Guzmán Avilés | F125: 64-2018-031-AMSA | G125: 2010-01-02 | H125: 71.4 | I125: 31 | J125: 2213.4 | K125: 250 | L125: 581.56 | M125: 3044.96 | N125: 135 | O125: 0 | P125: 0 | Q125: 135 | R125: 2909.96 | S125: 3216001645
B126: 10 | D126: Peón | E126: Cosmen Vitalino Obando Montenegro | F126: 65-2018-031-AMSA | G126: 2007-01-02 | H126: 71.4 | I126: 31 | J126: 2213.4 | K126: 250 | L126: 581.56 | M126: 3044.96 | N126: 135 | O126: 0 | P126: 0 | Q126: 135 | R126: 2909.96 | S126: 3216004490
B127: 11 | D127: Peón | E127: Juan Antonio Roque Dionisio | F127: 66-2018-031-AMSA | G127: 2007-01-02 | H127: 71.4 | I127: 31 | J127: 2213.4 | K127: 250 | L127: 581.56 | M127: 3044.96 | N127: 135 | O127: 0 | P127: 0 | Q127: 135 | R127: 2909.96 | S127: 3216004353
B128: 12 | D128: Peón | E128: Marlon Geovani Arizandieta Arroyo | F128: 67-2018-031-AMSA | G128: 2013-02-01 | H128: 71.4 | I128: 31 | J128: 2213.4 | K128: 250 | L128: 581.56 | M128: 3044.96 | N128: 135 | O128: 0 | P128: 0 | Q128: 135 | R128: 2909.96 | S128: 3216001627
B129: 13 | D129: Peón | E129: Erik Leonel Quixaj Ortiz | F129: 68-2018-031-AMSA | G129: 2017-01-01 | H129: 71.4 | I129: 31 | J129: 2213.4 | K129: 250 | L129: 581.56 | M129: 3044.96 | N129: 135 | O129: 0 | P129: 0 | Q129: 135 | R129: 2909.96 | S129: 3164003073
B130: 14 | D130: Conserje | E130: Reyna Elizabeth Toc Choz | F130: 69-2018-031-AMSA | G130: 2014-07-14 | H130: 71.4 | I130: 31 | J130: =H130*I130 -> 2213.4 | K130: 250 | L130: 581.56 | M130: =SUM(J130:L130) -> 3044.96 | N130: =ROUND((J130+L130)*4.83%,2) -> 135 | O130: 0 | P130: 0 | Q130: =SUM(N130:P130) -> 135 | R130: 2909.96 | S130: 3247011971
B131: 15 | D131: Peón | E131: José Luis Arizandieta Cabrera | F131: 70-2018-031-AMSA | G131: 2016-01-01 | H131: 71.4 | I131: 31 | J131: =H131*I131 -> 2213.4 | K131: 250 | L131: 581.56 | M131: =SUM(J131:L131) -> 3044.96 | N131: =ROUND((J131+L131)*4.83%,2) -> 135 | O131: 0 | P131: 0 | Q131: =SUM(N131:P131) -> 135 | R131: =+M131-Q131 -> 2909.96 | S131: 3229010497
B132: 16 | D132: Peón | E132: Jorge Eduardo López Ramírez | F132: 71-2018-031-AMSA | G132: 2018-01-01 | H132: 71.4 | I132: 31 | J132: =H132*I132 -> 2213.4 | K132: 250 | L132: 581.56 | M132: =SUM(J132:L132) -> 3044.96 | N132: =ROUND((J132+L132)*4.83%,2) -> 135 | O132: 0 | P132: 0 | Q132: =SUM(N132:P132) -> 135 | R132: =+M132-Q132 -> 2909.96 | S132: 3815003829
B133: 17 | D133: Peón | E133: Samuel Acabal Ajbac | F133: 72-2018-031-AMSA | G133: 2018-01-01 | H133: 71.4 | I133: 27 | J133: 1927.8 | K133: 250 | L133: 506.52 | M133: 2684.32 | N133: 117.58 | O133: 0 | P133: 0 | Q133: 117.58 | R133: 2566.74 | S133: 3225014368
B134: 18 | D134: Peón | E134: Esvin Daniel Ramirez Pineda | F134: 73-2018-031-AMSA | G134: 2018-01-01 | H134: 71.4 | I134: 31 | J134: 2213.4 | K134: 250 | L134: 581.56 | M134: 3044.96 | N134: 135 | O134: 0 | P134: 0 | Q134: 135 | R134: 2909.96 | S134: 3164073417
B135: 19 | D135: Peón | E135: Jefry Antonio Paiz Díaz | F135: 74-2018-031-AMSA | G135: 2018-01-01 | H135: 71.4 | I135: 31 | J135: 2213.4 | K135: 250 | L135: 581.56 | M135: 3044.96 | N135: 135 | O135: 0 | P135: 0 | Q135: 135 | R135: 2909.96 | S135: 3164073908
B136: 20 | D136: Peón | E136: Edie Stuardo García Velásquez | F136: 75-2018-031-AMSA | G136: 2018-01-01 | H136: 71.4 | I136: 31 | J136: 2213.4 | K136: 250 | L136: 581.56 | M136: 3044.96 | N136: 135 | O136: 0 | P136: 0 | Q136: 135 | R136: 2909.96 | S136: 3287036831
B137: 21 | D137: Peón | E137: Bernardino Alistún Cachín | F137: 76-2018-031-AMSA | G137: 2018-01-01 | H137: 71.4 | I137: 31 | J137: 2213.4 | K137: 250 | L137: 581.56 | M137: 3044.96 | N137: 135 | O137: 0 | P137: 0 | Q137: 135 | R137: 2909.96 | S137: 3287036813
B138: 22 | D138: Peón | E138: Epimenio Nehemias Arroyo Telon | F138: 78-2018-031-AMSA | G138: 2018-01-01 | H138: 71.4 | I138: 31 | J138: 2213.4 | K138: 250 | L138: 581.56 | M138: 3044.96 | N138: 135 | O138: 0 | P138: 0 | Q138: 135 | R138: 2909.96 | S138: 3229056994
F139: Totales | J139: =SUM(J117:J138) -> 48409.2 | K139: 5500 | L139: 12719.28 | M139: =SUM(M117:M138) -> 66628.48 | N139: 2952.58 | O139: 800 | P139: 0 | Q139: 3752.58 | R139: 62875.9
B142: SUBPRODUCTO: REFORESTACIÓN Y MANTENIMIENTO DE ÁREAS EN LA CUENCA DEL LAGO DE AMATITLÁN 001-008-0008
B143: 11130016-219-00-33-00-000-005-000-031-0115-11-0000-0000
B145: No. | C145: PUESTO | D145: Titulo Jornal Diario | E145: Empleado | F145: Contrato | G145: Fecha de Ingreso | H145: Jornal | I145: Días | J145: Renglón 031 | K145: Renglón 033 | L145: Renglón 033 | M145: Total Devengado Mensual | N145: Deducciones | Q145: Total Deducciones | R145: Liquido | S145: Número de Cuenta | V145: 0005 / 346 - UC REFORESTACIÓN (008)
N146: 201 | O146: 211 | P146: 120
J147: Jornales | K147: Bono 66-2000 | L147: complemento específico por nivelación | N147: IGSS | O147: Retenciones Judiciales | P147: Decreto 81-70
B148: 1 | D148: Jardinero II | E148: José Abel Chamalé Par | F148: 77-2018-031-AMSA | G148: 2018-01-01 | H148: 72.54 | I148: 31 | J148: =H148*I148 -> 2248.74 | K148: 250 | L148: =17.62*I148 -> 546.22 | M148: =SUM(J148:L148) -> 3044.96 | N148: =ROUND((J148+L148)*4.83%,2) -> 135 | O148: 0 | Q148: =SUM(N148:P148) -> 135 | R148: =+M148-Q148 -> 2909.96 | S148: 3164078632 | U148: =90.16-72.54 -> 17.62
B149: 2 | D149: Jardinero II | E149: Esvin Leonel Rivera Pineda | F149: 79-2018-031-AMSA | G149: 2014-02-17 | H149: 72.54 | I149: 31 | J149: =H149*I149 -> 2248.74 | K149: 250 | L149: =17.62*I149 -> 546.22 | M149: =SUM(J149:L149) -> 3044.96 | N149: =ROUND((J149+L149)*4.83%,2) -> 135 | O149: 0 | Q149: =SUM(N149:P149) -> 135 | R149: =+M149-Q149 -> 2909.96 | S149: 3216001659
B150: 3 | C150: Peón de Campo | D150: Jardinero II | E150: José Alberto Rucal | F150: 80-2018-031-AMSA | G150: 2002-01-02 | H150: 72.54 | I150: 0 | J150: 0 | K150: 250 | L150: 0 | M150: 250 | N150: 0 | O150: 0 | Q150: 0 | R150: 250 | S150: 3216001457 | U150: NACIONES UNIDAS
B151: 4 | C151: Peón de Campo | D151: Jardinero II | E151: Julio Roberto Martínez Aguilar | F151: 81-2018-031-AMSA | G151: 2002-01-02 | H151: 72.54 | I151: 31 | J151: 2248.74 | K151: 250 | L151: 546.22 | M151: 3044.96 | N151: 135 | O151: 0 | Q151: 135 | R151: 2909.96 | S151: 3216001695
B152: 5 | C152: Peón de Campo | D152: Jardinero II | E152: Juan Emilio Cruz De León | F152: 82-2018-031-AMSA | G152: 2015-01-05 | H152: 72.54 | I152: 31 | J152: 2248.74 | K152: 250 | L152: 546.22 | M152: 3044.96 | N152: 135 | O152: 0 | Q152: 135 | R152: 2909.96 | S152: 3216001920
B153: 6 | C153: Peón de Campo | D153: Jardinero II | E153: Emilio Taque Carranza | F153: 83-2018-031-AMSA | G153: 2013-01-02 | H153: 72.54 | I153: 31 | J153: 2248.74 | K153: 250 | L153: 546.22 | M153: 3044.96 | N153: 135 | O153: 0 | Q153: 135 | R153: 2909.96 | S153: 3216004468
B154: 7 | C154: Peón de Campo | D154: Jardinero II | E154: Rigoberto de Jesús Osorio Morataya | F154: 84-2018-031-AMSA | G154: 2007-09-01 | H154: 72.54 | I154: 31 | J154: 2248.74 | K154: 250 | L154: 546.22 | M154: 3044.96 | N154: 135 | O154: 0 | Q154: 135 | R154: 2909.96 | S154: 3164033390
B155: 8 | C155: Peón de Campo | D155: Jardinero II | E155: Manuel de Jesús Coy Malín | F155: 85-2018-031-AMSA | G155: 2002-01-02 | H155: 72.54 | I155: 31 | J155: 2248.74 | K155: 250 | L155: 546.22 | M155: 3044.96 | N155: 135 | O155: 0 | Q155: 135 | R155: 2909.96 | S155: 3216001728
B156: 9 | C156: Peón de Campo | D156: Jardinero II | E156: Francisco Javier Rivera Orellana | F156: 86-2018-031-AMSA | G156: 2004-07-07 | H156: 72.54 | I156: 31 | J156: 2248.74 | K156: 250 | L156: 546.22 | M156: 3044.96 | N156: 135 | O156: 0 | Q156: 135 | R156: 2909.96 | S156: 3216001916 | U156: NACIONES UNIDAS
B157: 10 | D157: Jardinero II | E157: Juan Paplo Lemús Corado | F157: 135-2018-031-AMSA | G157: 2018-05-03 | H157: 72.54 | I157: 31 | J157: =H157*I157 -> 2248.74 | K157: 250 | L157: =17.62*I157 -> 546.22 | M157: =SUM(J157:L157) -> 3044.96 | N157: 135 | O157: 0 | Q157: =SUM(N157:P157) -> 135 | R157: =+M157-Q157 -> 2909.96 | S157: 3164080169
B163: 11 | C163: Peón de Campo | D163: Jardinero II | E163: Víctor Manuel López Rodríguez | F163: 88-2018-031-AMSA | G163: 2005-02-01 | H163: 72.54 | I163: 31 | J163: 2248.74 | K163: 250 | L163: 546.22 | M163: 3044.96 | N163: 135 | O163: 0 | Q163: 135 | R163: 2909.96 | S163: 3216001865
B164: 12 | C164: Piloto | D164: Jardinero II | E164: Cosme Virgilio Morales Rodríguez | F164: 89-2018-031-AMSA | G164: 2005-01-03 | H164: 72.54 | I164: 31 | J164: 2248.74 | K164: 250 | L164: 546.22 | M164: 3044.96 | N164: 135 | O164: 0 | Q164: 135 | R164: 2909.96 | S164: 3216001829
B165: 13 | C165: Peón de Campo | D165: Jardinero II | E165: Carlos Alberto Morales Contreras | F165: 90-2018-031-AMSA | G165: 2005-01-03 | H165: 72.54 | I165: 31 | J165: 2248.74 | K165: 250 | L165: 546.22 | M165: 3044.96 | N165: 135 | O165: 0 | Q165: 135 | R165: 2909.96 | S165: 3216001833 | U165: NACIONES UNIDAS
B166: 14 | C166: Peón de Campo | D166: Jardinero II | E166: Miguel Ángel Ramos Luis | F166: 91-2018-031-AMSA | G166: 2002-02-12 | H166: 72.54 | I166: 31 | J166: 2248.74 | K166: 250 | L166: 546.22 | M166: 3044.96 | N166: 135 | O166: 0 | Q166: 135 | R166: 2909.96 | S166: 3216001851 | U166: NACIONES UNIDAS
B167: 15 | C167: Peón de Campo | D167: Jardinero II | E167: Felipe Santiago Carreto | F167: 92-2018-031-AMSA | G167: 2006-01-03 | H167: 72.54 | I167: 31 | J167: 2248.74 | K167: 250 | L167: 546.22 | M167: 3044.96 | N167: 135 | O167: 0 | Q167: 135 | R167: 2909.96 | S167: 4216008623 | U167: NACIONES UNIDAS
B168: 16 | D168: Jardinero II | E168: Custodio Quiñonez Morataya | F168: 93-2018-031-AMSA | G168: 2015-11-03 | H168: 72.54 | I168: 31 | J168: 2248.74 | K168: 250 | L168: 546.22 | M168: 3044.96 | N168: 135 | O168: 0 | Q168: 135 | R168: 2909.96 | S168: 3164030412
B169: 17 | D169: Jardinero II | E169: Sotero Chocón Vargas | F169: 94-2018-031-AMSA | G169: 2018-01-01 | H169: 72.54 | I169: 31 | J169: 2248.74 | K169: 250 | L169: 546.22 | M169: 3044.96 | N169: 135 | O169: 0 | Q169: 135 | R169: 2909.96 | S169: 3164079920
B170: 18 | D170: Jardinero II | E170: José Muñoz Chávez | F170: 95-2018-031-AMSA | G170: 2016-01-01 | H170: 72.54 | I170: 31 | J170: 2248.74 | K170: 250 | L170: 546.22 | M170: 3044.96 | N170: 135 | O170: 0 | Q170: 135 | R170: 2909.96 | S170: 3229011973
B171: 19 | D171: Jardinero II | E171: Víctor Vicente Paredes González | F171: 96-2018-031-AMSA | G171: 2016-01-01 | H171: 72.54 | I171: 31 | J171: 2248.74 | K171: 250 | L171: 546.22 | M171: 3044.96 | N171: 135 | O171: 0 | Q171: 135 | R171: 2909.96 | S171: 3287008934
B172: 20 | D172: Jardinero II | E172: Antonio Coy Hernandez | F172: 97-2018-031-AMSA | G172: 2016-01-01 | H172: 72.54 | I172: 31 | J172: 2248.74 | K172: 250 | L172: 546.22 | M172: 3044.96 | N172: 135 | O172: 0 | Q172: 135 | R172: 2909.96 | S172: 3287036198
B173: 21 | D173: Jardinero II | E173: Vitelio Catalan Ovando | F173: 98-2018-031-AMSA | G173: 2016-01-01 | H173: 72.54 | I173: 31 | J173: 2248.74 | K173: 250 | L173: 546.22 | M173: 3044.96 | N173: 135 | O173: 0 | Q173: 135 | R173: 2909.96 | S173: 3164074549
B174: 22 | D174: Jardinero II | E174: Ovidio Lizandro Alburez Martínez | F174: 99-2018-031-AMSA | G174: 2018-01-01 | H174: 72.54 | I174: 6 | J174: 435.24 | K174: 250 | L174: 105.72 | M174: 790.96 | N174: 26.13 | O174: 0 | Q174: 26.13 | R174: 764.83 | S174: 3164029306
B175: 23 | D175: Jardinero II | E175: Rafael Rodríguez López | F175: 100-2018-031-AMSA | G175: 2018-01-01 | H175: 72.54 | I175: 21 | J175: 1523.34 | K175: 250 | L175: 370.02 | M175: 2143.36 | N175: 91.45 | O175: 0 | Q175: 91.45 | R175: 2051.91 | S175: 3164041601
B176: 24 | D176: Jardinero II | E176: Sixto Emmanuel Hernández Hernández | F176: 101-2018-031-AMSA | G176: 2018-01-01 | H176: 72.54 | I176: 31 | J176: 2248.74 | K176: 250 | L176: 546.22 | M176: 3044.96 | N176: 135 | O176: 0 | Q176: 135 | R176: 2909.96 | S176: 3164072945
B177: 25 | D177: Jardinero II | E177: Vilmer Antonio Jimenez Choma | F177: 102-2018-031-AMSA | G177: 2018-01-01 | H177: 72.54 | I177: 31 | J177: 2248.74 | K177: 250 | L177: 546.22 | M177: 3044.96 | N177: 135 | O177: 0 | Q177: 135 | R177: 2909.96 | S177: 3287032954
B178: 26 | D178: Jardinero II | E178: Gabriel de Jesús Morales Pineda | F178: 103-2018-031-AMSA | G178: 2018-01-01 | H178: 72.54 | I178: 31 | J178: 2248.74 | K178: 250 | L178: 546.22 | M178: 3044.96 | N178: 135 | O178: 0 | Q178: 135 | R178: 2909.96 | S178: 3654013124
B179: 27 | D179: Jardinero II | E179: Adan Crispín | F179: 104-2018-031-AMSA | G179: 2018-01-01 | H179: 72.54 | I179: 31 | J179: 2248.74 | K179: 250 | L179: 546.22 | M179: 3044.96 | N179: 135 | O179: 0 | Q179: 135 | R179: 2909.96 | S179: 3164072894
B180: 28 | D180: Jardinero II | E180: Fredy Leonidas Domínguez Ortiz | F180: 105-2018-031-AMSA | G180: 2018-01-01 | H180: 72.54 | I180: 31 | J180: 2248.74 | K180: 250 | L180: 546.22 | M180: 3044.96 | N180: 135 | O180: 0 | Q180: 135 | R180: 2909.96 | S180: 3287032867
B181: 29 | D181: Jardinero II | E181: Vicente Orlando Escobar Estupe | F181: 106-2018-031-AMSA | G181: 2018-01-01 | H181: 72.54 | I181: 31 | J181: 2248.74 | K181: 250 | L181: 546.22 | M181: 3044.96 | N181: 135 | O181: 0 | Q181: 135 | R181: 2909.96 | S181: 3686024851
B182: 30 | D182: Jardinero II | E182: Carlos Humberto Arizandieta Cabrera | F182: 107-2018-031-AMSA | G182: 2018-01-01 | H182: 72.54 | I182: 31 | J182: 2248.74 | K182: 250 | L182: 546.22 | M182: 3044.96 | N182: 135 | O182: 0 | Q182: 135 | R182: 2909.96 | S182: 3229052425
B183: 31 | D183: Jardinero II | E183: Gerardo Macolás Marroquín | F183: 108-2018-031-AMSA | G183: 2018-01-01 | H183: 72.54 | I183: 31 | J183: 2248.74 | K183: 250 | L183: 546.22 | M183: 3044.96 | N183: 135 | O183: 0 | Q183: 135 | R183: 2909.96 | S183: 3229011717
B184: 32 | D184: Jardinero II | E184: Teodoro Quexel Lopez | F184: 109-2018-031-AMSA | G184: 2018-01-01 | H184: 72.54 | I184: 31 | J184: 2248.74 | K184: 250 | L184: 546.22 | M184: 3044.96 | N184: 135 | O184: 0 | Q184: 135 | R184: 2909.96 | S184: 3287038930
B185: 33 | D185: Jardinero II | E185: Julio Rodolfo Nixón García Ramírez | F185: 110-2018-031-AMSA | G185: 2018-01-01 | H185: 72.54 | I185: 31 | J185: 2248.74 | K185: 250 | L185: 546.22 | M185: 3044.96 | N185: 135 | O185: 0 | Q185: 135 | R185: 2909.96 | S185: 3661012641
B186: 34 | D186: Jardinero II | E186: Neri Antonio Hernández Osorio | F186: 111-2018-031-AMSA | G186: 2018-01-01 | H186: 72.54 | I186: 31 | J186: 2248.74 | K186: 250 | L186: 546.22 | M186: 3044.96 | N186: 135 | O186: 0 | Q186: 135 | R186: 2909.96 | S186: 3164040395
B187: 35 | D187: Jardinero II | E187: Mauro Romeo González Quezada | F187: 112-2018-031-AMSA | G187: 2018-01-01 | H187: 72.54 | I187: 31 | J187: 2248.74 | K187: 250 | L187: 546.22 | M187: 3044.96 | N187: 135 | O187: 0 | Q187: 135 | R187: 2909.96 | S187: 3164079984
F188: Totales | J188: =SUM(J148:J187) -> 73918.26 | K188: 8750 | L188: 17954.78 | M188: =SUM(M148:M187) -> 100623.04 | N188: 4437.58 | O188: 0 | P188: 0 | Q188: 4437.58 | R188: 96185.46
J191: Renglón 031 | K191: Renglón 033 | L191: Renglón 033 | M191: Total Devengado Mensual | N191: Deducciones | Q191: Total Deducciones | R191: Liquido
N192: 201 | O192: 211 | P192: 120
B193: TOTAL NÓMINA | J193: Jornales | K193: Bono 66-2000 | L193: complemento específico por nivelación | N193: IGSS | O193: Retenciones Judiciales | P193: Decreto 81-70
J194: =+J188+J139+J94+J56+J39 -> 245119.22 | K194: 28000 | L194: 60613.34 | M194: 333732.56 | N194: 14767.25 | O194: 2570 | P194: 0 | Q194: 17337.25 | R194: 316395.31

Sheet POLICIAS
A2: AUTORIDAD PARA EL MANEJO SUSTENTABLE DE LA CUENCA Y DEL LAGO DE AMATITLÁN
A3: NOMINA CORRESPONDIENTE AL MES DE JULIO 2018
A4: NÚMERO 22-2018
B5: RENGLÓN 031 "JORNALES"
C7: SOLICITUD DE PAGO
A9: SUBPRODUCTO: DIRECCIÓN Y COORDINACIÓN 001-001-0001
B10: 11130016-219-00-33-00-000-001-000-031-0115-11-0000-0000
B14: No. | C14: Titulo Jornal Diario | D14: Empleado | E14: Contrato | F14: Fecha de Ingreso | G14: Jornal | H14: Días | I14: Renglón 031 | J14: Renglón 033 | K14: Renglón 033 | L14: Total Devengado Mensual | M14: Deducciones | P14: Total Deducciones | Q14: Liquido | R14: Número de Cuenta G&T
M15: 201 | N15: 211 | O15: 120
I16: Jornales | J16: Bono 66-2000 | K16: complemento específico por nivelación | M16: IGSS | N16: Retenciones Judiciales | O16: Decreto 81-70
B17: 1 | C17: Peon Vigilante V | D17: José Luis Perpuac Gómez | E17: 17-2018-031-AMSA | F17: 2017-02-20 | G17: 75.64 | H17: 31 | I17: =G17*H17 -> 2344.84 | J17: 250 | K17: =14.52*H17 -> 450.12 | L17: =SUM(I17:K17) -> 3044.96 | M17: =ROUND((I17+K17)*4.83%,2) -> 135 | N17: 0 | O17: 0 | P17: =SUM(M17:O17) -> 135 | Q17: =+L17-P17 -> 2909.96 | R17: 0430010569-2
